fUST/lending_fUST_20250822
["ID","MTS","AMOUNT","RATE_DAILY","PERIOD"]
[380584371,1755811752196,-480.0,0.00019452,2]
[380584372,1755811752217,-480.0,0.00019452,2]
[380584373,1755811752239,-480.0,0.00019452,2]
[380584374,1755811752260,-480.0,0.00019452,2]
[380584375,1755811752281,-480.0,0.00019452,2]
[380584376,1755811752303,-480.0,0.00019452,2]
[380584377,1755811752324,-733.77,0.00019452,2]
[380584378,1755811752348,-480.0,0.00019452,2]
[380584379,1755811752369,-480.0,0.00019452,2]
[380584380,1755811752391,-1533.13,0.00019452,2]
[380584381,1755811752412,-480.0,0.00019452,2]
[380584382,1755811752432,-480.0,0.00019452,2]
[380584383,1755811752454,-2386.2,0.00019452,2]
[380584384,1755811752476,-480.0,0.00019452,2]
[380584385,1755811752497,-616.45466968,0.00019452,2]
[380584386,1755811752518,-1175.76,0.00019452,2]
[380584387,1755811752540,-480.0,0.00019452,2]
[380584388,1755811752562,-480.0,0.00019452,2]
[380584389,1755811752582,-480.0,0.00019452,2]
[380584390,1755811752606,-480.0,0.00019452,2]
[380584391,1755811752630,-480.0,0.00019452,2]
[380584392,1755811752655,-521.2,0.00019452,2]
[380584393,1755811752676,-480.0,0.00019452,2]
[380584394,1755811752697,-783.56,0.00019452,2]
[380584395,1755811752718,-480.0,0.00019452,2]
[380584396,1755811752739,-480.0,0.00019452,2]
[380584397,1755811752760,-603.33,0.00019452,2]
[380584398,1755811752781,-699.65,0.00019452,2]
[380584399,1755811752805,-902.21,0.00019452,2]
[380584400,1755811752828,-718.95,0.00019452,2]
[380584401,1755811752849,-622.78979116,0.00019452,2]
[380584402,1755811752870,-480.0,0.00019452,2]
[380584403,1755811752892,-480.0,0.00019452,2]
[380584404,1755811752912,-480.0,0.00019452,2]
[380584405,1755811752935,-480.0,0.00019452,2]
[380584406,1755811752956,-480.0,0.00019452,2]
[380584407,1755811752976,-480.0,0.00019452,2]
[380584408,1755811752997,-480.0,0.00019452,2]
[380584409,1755811753019,-480.0,0.00019452,2]
[380584410,1755811753041,-480.0,0.00019452,2]
[380584411,1755811753062,-480.0,0.00019452,2]
[380584412,1755811753098,-480.0,0.00019452,2]
[380584413,1755811753142,-503.56,0.00019716,3]
[380584414,1755811753184,-251.78,0.00019716,3]
[380584415,1755811753205,-251.78,0.00019716,3]
[380584416,1755811753227,-708.28,0.00019723,2]
[380584417,1755811753250,-689.37,0.00019723,2]
[380584418,1755811753270,-215.7,0.00019726,2]
[380584419,1755811753291,-480.0,0.00019726,2]
[380584420,1755811753312,-480.0,0.00019726,2]
[380584421,1755811753332,-480.0,0.00019726,2]
[380584422,1755811753352,-480.0,0.00019726,2]
[380584423,1755811753373,-480.0,0.00019726,2]
[380584424,1755811753394,-480.0,0.00019726,2]
[380584425,1755811753526,-480.0,0.00019726,2]
[380584426,1755811753548,-480.0,0.00019726,2]
[380584427,1755811753570,-480.0,0.00019726,2]
[380584428,1755811753592,-733.77,0.00019726,2]
[380584429,1755811753614,-480.0,0.00019726,2]
[380584430,1755811753636,-1533.13,0.00019726,2]
[380584431,1755811753657,-480.0,0.00019726,2]
[380584432,1755811753679,-480.0,0.00019726,2]
[380584433,1755811753702,-2386.2,0.00019726,2]
[380584434,1755811753723,-518.17,0.00019726,2]
[380584435,1755811753745,-1175.76,0.00019726,2]
[380584436,1755811753767,-480.0,0.00019726,2]
[380584437,1755811753789,-480.0,0.00019726,2]
[380584438,1755811753810,-480.0,0.00019726,2]
[380584439,1755811753830,-217.75832575,0.00019726,2]
[380584440,1755811753851,-480.0,0.00019726,2]
[380584441,1755811753873,-480.0,0.00019726,2]
[380584442,1755811753894,-783.56,0.00019726,2]
[380584443,1755811753915,-480.0,0.00019726,2]
[380584444,1755811753936,-480.0,0.00019726,2]
[380584445,1755811753956,-603.33,0.00019726,2]
[380584446,1755811753979,-25.9680539,0.00019726,2]
[380584447,1755811754690,-673.6819461,0.00019726,2]
[380584448,1755811754714,-902.21,0.00019726,2]
[380584449,1755811754739,-718.95,0.00019726,2]
[380584450,1755811754759,-200.53375299,0.00019726,2]
[380584451,1755811754783,-480.0,0.00019726,2]
[380584452,1755811754804,-480.0,0.00019726,2]
[380584453,1755811754825,-480.0,0.00019726,2]
[380584454,1755811754846,-480.0,0.00019726,2]
[380584455,1755811754867,-134.23568303,0.00019726,2]
[380584456,1755811823516,11439.68264662,0.00019078,2]
[380584457,1755811823540,20000.0,0.00019078,2]
[380584458,1755811823564,20000.0,0.00019078,2]
[380584459,1755811823587,18560.31735338,0.00019078,2]
[380584495,1755811836366,-1200.0,0.00019177,2]
[380584497,1755811836376,-300.0,0.00019177,2]
[380584499,1755811836386,-480.0,0.00019178,2]
[380584501,1755811836396,-480.0,0.00019178,2]
[380584503,1755811836405,-642.04,0.00019178,2]
[380584505,1755811836414,-480.0,0.00019178,2]
[380584506,1755811836424,-480.0,0.00019178,2]
[380584507,1755811836434,-649.26,0.00019178,2]
[380584508,1755811836443,-480.0,0.00019178,2]
[380584509,1755811836453,-480.0,0.00019178,2]
[380584510,1755811836462,-480.0,0.00019178,2]
[380584511,1755811836471,-480.0,0.00019178,2]
[380584512,1755811836480,-480.0,0.00019178,2]
[380584513,1755811836489,-480.0,0.00019178,2]
[380584514,1755811836499,-480.0,0.00019452,2]
[380584515,1755811836507,-480.0,0.00019452,2]
[380584517,1755811836516,-642.04,0.00019452,2]
[380584518,1755811836525,-480.0,0.00019452,2]
[380584520,1755811836534,-431.89041008,0.00019452,2]
[380584522,1755811836543,-649.26,0.00019452,2]
[380584523,1755811836552,-480.0,0.00019452,2]
[380584524,1755811836561,-480.0,0.00019452,2]
[380584525,1755811836570,-480.0,0.00019452,2]
[380584526,1755811836579,-480.0,0.00019452,2]
[380584527,1755811836588,-345.76431697,0.00019726,2]
[380584528,1755811836598,-480.0,0.00019726,2]
[380584529,1755811836608,-480.0,0.00019726,2]
[380584530,1755811836618,-246.79719278,0.00019726,2]
[380584531,1755811836627,-480.0,0.00019726,2]
[380584532,1755811836637,-480.0,0.00019726,2]
[380584533,1755811836645,-480.0,0.00019726,2]
[380584535,1755811836654,-642.04,0.00019726,2]
[380584536,1755811836663,-480.0,0.00019726,2]
[380584538,1755811836673,-649.26,0.00019726,2]
[380584540,1755811836682,-480.0,0.00019726,2]
[380584542,1755811836692,-480.0,0.00019726,2]
[380584543,1755811836701,-480.0,0.00019726,2]
[380584544,1755811836710,-500.0,0.00019864,2]
[380584545,1755811836719,-500.0,0.00019864,2]
[380584546,1755811836728,-6725.06227748,0.000199,2]
[380584547,1755811836737,-615.03446656,0.00019976,2]
[380584548,1755811836746,-689.37,0.00019997,2]
[380584549,1755811836755,-480.0,0.00019998,2]
[380584550,1755811836765,-480.0,0.00019998,2]
[380584551,1755811836774,-480.0,0.00019998,2]
[380584552,1755811836784,-480.0,0.00019998,2]
[380584553,1755811836793,-480.0,0.00019998,2]
[380584554,1755811836802,-480.0,0.00019998,2]
[380584555,1755811836811,-480.0,0.00019998,2]
[380584556,1755811836821,-480.0,0.00019998,2]
[380584557,1755811836831,-480.0,0.00019998,2]
[380584558,1755811836840,-480.0,0.00019998,2]
[380584559,1755811836849,-480.0,0.00019998,2]
[380584560,1755811836858,-480.0,0.00019998,2]
[380584561,1755811836868,-480.0,0.00019998,2]
[380584562,1755811836877,-480.0,0.00019998,2]
[380584563,1755811836887,-480.0,0.00019998,2]
[380584564,1755811836895,-480.0,0.00019998,2]
[380584565,1755811836905,-617.8,0.00019998,2]
[380584566,1755811836914,-280.43027717,0.00019998,2]
[380584567,1755811836924,-480.0,0.0002,2]
[380584568,1755811836933,-480.0,0.0002,2]
[380584569,1755811836942,-480.0,0.0002,2]
[380584570,1755811836951,-480.0,0.0002,2]
[380584571,1755811836960,-480.0,0.0002,2]
[380584572,1755811836970,-1533.13,0.0002,2]
[380584573,1755811836979,-480.0,0.0002,2]
[380584574,1755811836989,-2386.2,0.0002,2]
[380584575,1755811836998,-1175.76,0.0002,2]
[380584576,1755811837006,-480.0,0.0002,2]
[380584577,1755811837016,-480.0,0.0002,2]
[380584578,1755811837025,-480.0,0.0002,2]
[380584579,1755811837034,-783.56,0.0002,2]
[380584580,1755811837043,-416.87883582,0.0002,2]
[380584581,1755811837056,-603.33,0.0002,2]
[380584582,1755811837066,-699.65,0.0002,2]
[380584583,1755811837075,-902.21,0.0002,2]
[380584584,1755811837084,-718.95,0.0002,2]
[380584585,1755811837094,-480.0,0.0002,2]
[380584586,1755811837106,-480.0,0.0002,2]
[380584587,1755811837115,-480.0,0.0002,2]
[380584588,1755811837125,-480.0,0.0002,2]
[380584589,1755811837135,-480.0,0.0002,2]
[380584590,1755811837144,-480.0,0.0002,2]
[380584591,1755811837154,-228.61957621,0.0002,2]
[380584592,1755811837163,-642.04,0.0002,2]
[380584593,1755811837172,-480.0,0.0002,2]
[380584594,1755811837182,-649.26,0.0002,2]
[380584595,1755811837191,-480.0,0.0002,2]
[380584596,1755811837200,-480.0,0.0002,2]
[380584597,1755811837210,-480.0,0.0002,2]
[380584598,1755811837219,-199.0,0.00020139,10]
[380584599,1755811837228,-199.0,0.00020239,10]
[380584600,1755811837237,-689.37,0.00020271,2]
[380584601,1755811837246,-480.0,0.00020272,2]
[380584602,1755811837256,-240.08,0.00020272,2]
[380584603,1755811837266,-257.38606876,0.00020272,2]
[380584604,1755811837275,-480.0,0.00020272,2]
[380584605,1755811837285,-270.1,0.00020272,2]
[380584606,1755811837293,-480.0,0.00020272,2]
[380584607,1755811837303,-261.24,0.00020272,2]
[380584608,1755811837312,-182.68,0.00020272,2]
[380584609,1755811837321,-359.98,0.00020272,2]
[380584610,1755811837331,-500.0,0.00020272,2]
[380584611,1755811837340,-642.1897587,0.00020272,2]
[380584612,1755811837349,-224.40676336,0.00020272,2]
[380584613,1755811837358,-480.0,0.00020273,2]
[380584614,1755811837367,-480.0,0.00020273,2]
[380584615,1755811837376,-480.0,0.00020273,2]
[380584616,1755811837385,-480.0,0.00020273,2]
[380584617,1755811837395,-480.0,0.00020273,2]
[380584618,1755811837405,-1533.13,0.00020273,2]
[380584619,1755811837414,-480.0,0.00020273,2]
[380584620,1755811837423,-2386.2,0.00020273,2]
[380584621,1755811837432,-1175.76,0.00020273,2]
[380584622,1755811837441,-480.0,0.00020273,2]
[380584623,1755811837450,-480.0,0.00020273,2]
[380584624,1755811837460,-480.0,0.00020273,2]
[380584625,1755811837469,-783.56,0.00020273,2]
[380584626,1755811837478,-603.33,0.00020273,2]
[380584627,1755811837487,-699.65,0.00020273,2]
[380584628,1755811837496,-902.21,0.00020273,2]
[380584629,1755811837506,-718.95,0.00020273,2]
[380584630,1755811837515,-480.0,0.00020273,2]
[380584631,1755811837524,-480.0,0.00020273,2]
[380584632,1755811837534,-480.0,0.00020273,2]
[380584633,1755811837543,-480.0,0.00020273,2]
[380584634,1755811837552,-480.0,0.00020273,2]
[380584635,1755811837561,-642.04,0.00020273,2]
[380584636,1755811837571,-480.0,0.00020273,2]
[380584637,1755811837580,-649.26,0.00020273,2]
[380584638,1755811837589,-150.88095062,0.00020273,2]
[380584639,1755811837598,-480.0,0.00020273,2]
[380584640,1755811837607,-480.0,0.00020273,2]
[380584641,1755811837615,-850.14075058,0.00020412,2]
[380584642,1755811837625,-1000.0,0.00020412,2]
[380584643,1755811837635,-844.19128999,0.0002044,2]
[380584644,1755811837644,-376.00439007,0.00020447,2]
[380584645,1755811837653,-232.28399145,0.00020447,2]
[380584646,1755811837662,-160.0,0.00020447,2]
[380584647,1755811837671,-215.86710461,0.00020447,2]
[380584648,1755811837680,-216.95272161,0.00020447,2]
[380584649,1755811837689,-528.88070896,0.00020447,2]
[380584650,1755811837699,-160.0,0.00020447,2]
[380584651,1755811837708,-12690.45384448,0.00020447,2]
[380584652,1755811837716,-689.37,0.00020545,2]
[380584653,1755811837726,-480.0,0.00020546,2]
[380584654,1755811837735,-480.0,0.00020546,2]
[380584655,1755811837744,-480.0,0.00020546,2]
[380584656,1755811837753,-480.0,0.00020547,2]
[380584657,1755811837762,-297.63200105,0.00020547,2]
[380584658,1755811837771,-480.0,0.00020547,2]
[380584659,1755811837780,-480.0,0.00020547,2]
[380584660,1755811837789,-480.0,0.00020547,2]
[380584661,1755811837798,-1533.13,0.00020547,2]
[380584662,1755811837808,-480.0,0.00020547,2]
[380584663,1755811837817,-2386.2,0.00020547,2]
[380584664,1755811837826,-897.86951765,0.00020547,2]
[380584665,1755811837839,-277.89048235,0.00020547,2]
[380584666,1755811837849,-480.0,0.00020547,2]
[380584667,1755811837858,-480.0,0.00020547,2]
[380584668,1755811837868,-480.0,0.00020547,2]
[380584669,1755811837877,-102.00951765,0.00020547,2]
[380584670,1755811837888,-681.55048235,0.00020547,2]
[380584671,1755811837898,-603.33,0.00020547,2]
[380584672,1755811837908,-699.65,0.00020547,2]
[380584673,1755811837917,-902.21,0.00020547,2]
[380584674,1755811837926,-718.95,0.00020547,2]
[380584675,1755811837935,-480.0,0.00020547,2]
[380584676,1755811837944,-480.0,0.00020547,2]
[380584677,1755811837954,-480.0,0.00020547,2]
[380584678,1755811837963,-480.0,0.00020547,2]
[380584679,1755811837972,-480.0,0.00020547,2]
[380584680,1755811837982,-642.04,0.00020547,2]
[380584681,1755811837991,-480.0,0.00020547,2]
[380584682,1755811838002,-649.26,0.00020547,2]
[380584683,1755811838011,-480.0,0.00020547,2]
[380584684,1755811838021,-480.0,0.00020547,2]
[380584685,1755811838030,-1069.80647933,0.00020798,2]
[380584686,1755811838041,-18.64225251,0.00020798,2]
[380584687,1755811838051,-689.37,0.00020819,2]
[380584688,1755811838060,-480.0,0.0002082,2]
[380584689,1755811838069,-480.0,0.0002082,2]
[380584690,1755811838078,-262.70155481,0.0002082,2]
[380584691,1755811838087,-480.0,0.00020821,2]
[380584692,1755811838099,-480.0,0.00020821,2]
[380584693,1755811838109,-284.37432875,0.00020821,2]
[380584694,1755811838119,-612.87915194,0.00020821,2]
[380584695,1755811838130,-920.25084806,0.00020821,2]
[380584696,1755811838140,-480.0,0.00020821,2]
[380584697,1755811838150,-2386.2,0.00020821,2]
[380584698,1755811838159,-1175.76,0.00020821,2]
[380584699,1755811838168,-480.0,0.00020821,2]
[380584700,1755811838178,-467.73954074,0.00020821,2]
[380584718,1755811838528,-12.26045926,0.00020821,2]
[380584719,1755811838538,-480.0,0.00020821,2]
[380584720,1755811838547,-783.56,0.00020821,2]
[380584721,1755811838556,-603.33,0.00020821,2]
[380584722,1755811838565,-699.65,0.00020821,2]
[380584723,1755811838574,-902.21,0.00020821,2]
[380584724,1755811838583,-718.95,0.00020821,2]
[380584725,1755811838593,-480.0,0.00020821,2]
[380584726,1755811838602,-480.0,0.00020821,2]
[380584727,1755811838611,-206.8831,0.00020821,2]
[380584728,1755811838620,-157.71342228,0.00020821,2]
[380584729,1755811838630,-480.0,0.00020821,2]
[380584730,1755811838640,-642.04,0.00020821,2]
[380584731,1755811838649,-480.0,0.00020821,2]
[380584732,1755811838658,-649.26,0.00020821,2]
[380584733,1755811838668,-480.0,0.00020821,2]
[380584734,1755811838677,-480.0,0.00020821,2]
[380584735,1755811838686,-2514.14301846,0.00020835,2]
[380584736,1755811838775,-4210.91925881,0.00020835,2]
[380584737,1755811838784,-500.0,0.00020873,2]
[380584738,1755811838794,-500.0,0.00020873,2]
[380584739,1755811838803,-500.0,0.00020873,2]
[380584740,1755811838812,-500.0,0.00020873,2]
[380584741,1755811838822,-8985.88575601,0.00020899,2]
[380584742,1755811838832,-420.0,0.00020899,2]
[380584743,1755811838841,-1500.0,0.0002096,2]
[380584744,1755811838850,-25680.89299818,0.00020998,2]
[380584745,1755811838860,-1680.0,0.00021,2]
[380584746,1755811838870,-11448.72490966,0.00021001,5]
[380584747,1755811838879,-1007.12,0.00021086,3]
[380584748,1755811838890,-503.56,0.00021086,3]
[380584749,1755811838899,-503.56,0.00021086,3]
[380584750,1755811838909,-689.37,0.00021093,2]
[380584751,1755811838918,-480.0,0.00021094,2]
[380584752,1755811838927,-480.0,0.00021094,2]
[380584753,1755811838936,-151.02,0.00021095,2]
[380584754,1755811838945,-480.0,0.00021095,2]
[380584755,1755811838954,-1533.13,0.00021095,2]
[380584756,1755811838963,-2386.2,0.00021095,2]
[380584757,1755811838973,-1175.76,0.00021095,2]
[380584758,1755811838982,-480.0,0.00021095,2]
[380584759,1755811838992,-480.0,0.00021095,2]
[380584760,1755811839002,-240.41039786,0.00021095,2]
[380584761,1755811839012,-783.56,0.00021095,2]
[380584762,1755811839022,-603.33,0.00021095,2]
[380584763,1755811839033,-699.65,0.00021095,2]
[380584764,1755811839042,-902.21,0.00021095,2]
[380584765,1755811839052,-718.95,0.00021095,2]
[380584766,1755811839063,-480.0,0.00021095,2]
[380584767,1755811839074,-480.0,0.00021095,2]
[380584768,1755811839083,-480.0,0.00021095,2]
[380584769,1755811839094,-642.04,0.00021095,2]
[380584770,1755811839107,-480.0,0.00021095,2]
[380584771,1755811839116,-649.26,0.00021095,2]
[380584772,1755811839126,-480.0,0.00021095,2]
[380584773,1755811839136,-480.0,0.00021095,2]
[380584774,1755811839145,-287.58057633,0.0002115,2]
[380584775,1755811839155,-6295.11884119,0.000212,30]
[380584776,1755811839166,-689.37,0.00021367,2]
[380584777,1755811839177,-480.0,0.00021368,2]
[380584778,1755811839190,-480.0,0.00021368,2]
[380584779,1755811839201,-480.0,0.00021369,2]
[380584780,1755811839340,-1533.13,0.00021369,2]
[380584781,1755811839352,-2386.2,0.00021369,2]
[380584782,1755811839362,-1175.76,0.00021369,2]
[380584783,1755811839371,-480.0,0.00021369,2]
[380584784,1755811839381,-480.0,0.00021369,2]
[380584785,1755811839391,-783.56,0.00021369,2]
[380584786,1755811839400,-603.33,0.00021369,2]
[380584787,1755811839409,-699.65,0.00021369,2]
[380584788,1755811839418,-902.21,0.00021369,2]
[380584789,1755811839427,-718.95,0.00021369,2]
[380584790,1755811839436,-480.0,0.00021369,2]
[380584791,1755811839446,-480.0,0.00021369,2]
[380584792,1755811839455,-480.0,0.00021369,2]
[380584793,1755811839464,-642.04,0.00021369,2]
[380584794,1755811839473,-480.0,0.00021369,2]
[380584795,1755811839482,-649.26,0.00021369,2]
[380584796,1755811839491,-480.0,0.00021369,2]
[380584797,1755811839500,-480.0,0.00021369,2]
[380584798,1755811839509,-1000.0,0.00021421,2]
[380584799,1755811839519,-1000.0,0.00021421,2]
[380584800,1755811839529,-1000.0,0.00021421,2]
[380584801,1755811839539,-785.55955501,0.00021508,2]
[380584802,1755811839548,-800.0,0.00021612,2]
[380584803,1755811839557,-689.37,0.00021641,2]
[380584804,1755811839566,-480.0,0.00021642,2]
[380584805,1755811839575,-480.0,0.00021642,2]
[380584806,1755811839586,-480.0,0.00021643,2]
[380584807,1755811839596,-1533.13,0.00021643,2]
[380584808,1755811839606,-2386.2,0.00021643,2]
[380584809,1755811839615,-1175.76,0.00021643,2]
[380584810,1755811839625,-480.0,0.00021643,2]
[380584811,1755811839636,-480.0,0.00021643,2]
[380584812,1755811839647,-783.56,0.00021643,2]
[380584813,1755811839656,-603.33,0.00021643,2]
[380584814,1755811839666,-699.65,0.00021643,2]
[380584815,1755811839676,-902.21,0.00021643,2]
[380584816,1755811839686,-718.95,0.00021643,2]
[380584817,1755811839695,-480.0,0.00021643,2]
[380584818,1755811839704,-480.0,0.00021643,2]
[380584819,1755811839714,-480.0,0.00021643,2]
[380584820,1755811839723,-642.04,0.00021643,2]
[380584821,1755811839732,-480.0,0.00021643,2]
[380584822,1755811839741,-649.26,0.00021643,2]
[380584823,1755811839750,-480.0,0.00021643,2]
[380584824,1755811839759,-391.74146876,0.00021643,2]
[380584825,1755811839770,-1088.44873183,0.00021799,2]
[380584826,1755811839781,-689.37,0.00021915,2]
[380584827,1755811839791,-480.0,0.00021916,2]
[380584828,1755811839800,-480.0,0.00021916,2]
[380584829,1755811839809,-500.0,0.00021916,2]
[380584830,1755811839820,-489.5741716,0.00021916,2]
[380584831,1755811839829,-500.0,0.00021916,2]
[380584832,1755811839838,-500.0,0.00021916,2]
[380584833,1755811839847,-500.0,0.00021916,2]
[380584834,1755811839856,-500.0,0.00021916,2]
[380584835,1755811839865,-500.0,0.00021916,2]
[380584836,1755811839875,-500.0,0.00021916,2]
[380584837,1755811839886,-500.0,0.00021916,2]
[380584838,1755811839895,-500.0,0.00021916,2]
[380584839,1755811839905,-307.66107695,0.00021916,2]
[380584840,1755811839914,-500.0,0.00021916,2]
[380584842,1755811839922,-500.0,0.00021916,2]
[380584843,1755811839931,-500.0,0.00021916,2]
[380584844,1755811839940,-500.0,0.00021916,2]
[380584845,1755811839949,-500.0,0.00021916,2]
[380584846,1755811839958,-500.0,0.00021916,2]
[380584847,1755811839967,-500.0,0.00021916,2]
[380584849,1755811839977,-500.0,0.00021916,2]
[380584850,1755811839986,-500.0,0.00021917,2]
[380584852,1755811839995,-500.0,0.00021917,2]
[380584853,1755811840005,-500.0,0.00021917,2]
[380584854,1755811840014,-500.0,0.00021917,2]
[380584855,1755811840023,-500.0,0.00021917,2]
[380584856,1755811840032,-500.0,0.00021917,2]
[380584857,1755811840041,-500.0,0.00021917,2]
[380584858,1755811840051,-500.0,0.00021917,2]
[380584859,1755811840059,-480.0,0.00021917,2]
[380584860,1755811840068,-1533.13,0.00021917,2]
[380584861,1755811840077,-2386.2,0.00021917,2]
[380584862,1755811840087,-1175.76,0.00021917,2]
[380584863,1755811840098,-480.0,0.00021917,2]
[380584864,1755811840109,-480.0,0.00021917,2]
[380584865,1755811840118,-783.56,0.00021917,2]
[380584866,1755811840127,-603.33,0.00021917,2]
[380584867,1755811840137,-699.65,0.00021917,2]
[380584868,1755811840147,-902.21,0.00021917,2]
[380584869,1755811840156,-718.95,0.00021917,2]
[380584870,1755811840166,-480.0,0.00021917,2]
[380584871,1755811840175,-480.0,0.00021917,2]
[380584872,1755811840185,-480.0,0.00021917,2]
[380584873,1755811840194,-642.04,0.00021917,2]
[380584874,1755811840203,-480.0,0.00021917,2]
[380584875,1755811840213,-649.26,0.00021917,2]
[380584876,1755811840222,-480.0,0.00021917,2]
[380584877,1755811840231,-8365.0,0.00021917,2]
[380584878,1755811840240,-200.0,0.00021918,2]
[380584879,1755811840249,-1000.0,0.00021968,2]
[380584880,1755811840259,-1500.0,0.00021968,2]
[380584882,1755811840268,-407.73,0.00022,7]
[380584883,1755811840277,-2276.2,0.00022,7]
[380584885,1755811840286,-5136.37,0.00022,7]
[380584886,1755811840295,-164.0,0.00022,2]
[380584887,1755811840304,-354.79774518,0.00022,2]
[380584888,1755811840313,-160.0,0.00022005,2]
[380584889,1755811840321,-151.0,0.00022029,2]
[380584890,1755811840329,-495.65,0.000221,2]
[380584891,1755811840338,-500.0,0.00022133,2]
[380584892,1755811840346,-500.0,0.00022133,2]
[380584893,1755811840355,-689.37,0.00022189,3]
[380584894,1755811840363,-480.0,0.0002219,3]
[380584895,1755811840371,-480.0,0.0002219,3]
[380584896,1755811840380,-500.0,0.0002219,3]
[380584897,1755811840391,-480.0,0.00022191,3]
[380584898,1755811840401,-1533.13,0.00022191,3]
[380584899,1755811840410,-2386.2,0.00022191,3]
[380584900,1755811840420,-1175.76,0.00022191,3]
[380584901,1755811840430,-480.0,0.00022191,3]
[380584902,1755811840439,-503.18465493,0.00022191,3]
[380584903,1755811840448,-376.00439007,0.00022191,3]
[380584904,1755811840457,-160.0,0.00022191,3]
[380584905,1755811840466,-783.56,0.00022191,3]
[380584907,1755811840475,-603.33,0.00022191,3]
[380584909,1755811840485,-699.65,0.00022191,3]
[380584910,1755811840495,-902.21,0.00022191,3]
[380584911,1755811840504,-718.95,0.00022191,3]
[380584912,1755811840514,-480.0,0.00022191,3]
[380584913,1755811840523,-480.0,0.00022191,3]
[380584914,1755811840531,-528.88070896,0.00022191,3]
[380584915,1755811840541,-480.0,0.00022191,3]
[380584916,1755811840550,-642.04,0.00022191,3]
[380584917,1755811840559,-480.0,0.00022191,3]
[380584918,1755811840568,-649.26,0.00022191,3]
[380584919,1755811840577,-480.0,0.00022191,3]
[380584920,1755811840586,-500.0,0.00022246,2]
[380584921,1755811840595,-500.0,0.00022246,2]
[380584922,1755811840604,-500.0,0.00022246,2]
[380584923,1755811840614,-500.0,0.00022264,2]
[380584924,1755811840623,-500.0,0.00022264,2]
[380584925,1755811840633,-460.339,0.00022358,2]
[380584926,1755811840649,-500.0,0.00022382,2]
[380584927,1755811840658,-500.0,0.00022382,2]
[380584928,1755811840667,-500.0,0.00022382,2]
[380584929,1755811840676,-500.0,0.00022382,2]
[380584930,1755811840685,-689.37,0.00022463,3]
[380584931,1755811840694,-480.0,0.00022464,3]
[380584932,1755811840703,-480.0,0.00022464,3]
[380584933,1755811840712,-395.75782404,0.00022464,3]
[380584934,1755811840721,-480.0,0.00022465,3]
[380584935,1755811840730,-1533.13,0.00022465,3]
[380584936,1755811840739,-2386.2,0.00022465,3]
[380584937,1755811840748,-1175.76,0.00022465,3]
[380584938,1755811840757,-480.0,0.00022465,3]
[380584939,1755811840767,-783.56,0.00022465,3]
[380584941,1755811840776,-603.33,0.00022465,3]
[380584943,1755811840785,-699.65,0.00022465,3]